bitfinex/quotes_ETHUSD_20251011
["timestamp","ask_amount","ask_price","bid_price","bid_amount"]
[1760215359676,20.3866052,3697.4,3696.1,0.4567]
[1760215359677,0.6336,3696.8,3696.1,0.4567]
[1760215359850,0.6336,3696.6,3695.4,0.6189]
[1760215360200,0.6336,3696.0,3695.4,0.4567]
[1760215360400,0.6336,3696.7,3694.9,2.86859288]
[1760215360566,0.6336,3696.6,3694.9,0.1622]
[1760215360767,2.70570726,3695.9,3694.9,0.1622]
[1760215361015,0.6336,3695.9,3694.9,2.86861492]
[1760215361219,0.6336,3695.9,3694.3,0.1622]
[1760215361378,0.6336,3696.0,3694.3,0.1622]
[1760215361564,1.92,3696.1,3694.3,0.1622]
[1760215361772,0.6336,3696.0,3694.4,0.49326799]
[1760215362084,0.6336,3696.0,3694.5,2.70672621]
[1760215362085,0.6336,3695.8,3694.5,2.70672621]
[1760215362280,0.6336,3695.8,3694.8,2.70646407]
[1760215362621,0.6336,3695.6,3694.3,0.1622]
[1760215362780,0.6336,3695.6,3694.2,0.1622]
[1760215362781,20.3866052,3695.6,3694.2,0.1622]
[1760215362963,20.3866052,3695.6,3692.0,0.1705]
[1760215362964,1.92,3694.6,3693.7,0.4662]
[1760215363169,2.5536,3694.6,3693.7,0.4662]
[1760215363386,0.6336,3694.6,3693.7,0.4662]
[1760215363618,0.6336,3694.6,3693.8,0.02707239]
[1760215364213,1.0,3926.9,3693.9,0.02707165]
[1760215364214,1.92,3695.5,3693.9,0.02707165]
[1760215364419,2.70436306,3697.8,3693.9,0.02707165]
[1760215364420,0.6336,3695.2,3693.9,0.4662]
[1760215364708,0.6336,3695.2,3694.4,2.70679307]
[1760215364999,0.6336,3695.4,3694.5,0.6284]
[1760215365196,0.437,3696.7,3694.7,2.70650711]
[1760215365400,20.3866052,3696.4,3694.6,0.4662]
[1760215365567,2.7054813,3696.2,3695.0,2.70635398]
[1760215365767,20.3866052,3696.8,3695.1,0.49326286]
[1760215366020,1.92,3696.7,3695.1,0.49326286]
[1760215366233,2.70518855,3696.6,3695.1,0.4662]
[1760215366401,20.3866052,3696.1,3694.5,0.6284]
[1760215366836,2.70583691,3695.8,3694.5,0.6284]
[1760215367039,0.6336,3696.0,3694.5,0.6284]
[1760215367239,0.6336,3695.8,3694.5,0.4662]
[1760215367533,0.6336,3695.8,3694.1,0.1622]
[1760215367701,0.6336,3695.6,3694.1,0.1622]
[1760215367901,0.457237,3696.8,3694.2,0.4662]
[1760215368136,2.70542017,3696.3,3694.2,0.4662]
[1760215368290,0.4537,3696.9,3694.2,2.3862]
[1760215368488,20.3866052,3697.0,3694.3,0.4662]
[1760215368723,2.70496902,3696.9,3695.8,2.70573306]
[1760215369020,2.70496902,3696.9,3694.3,0.4662]
[1760215369021,2.70577245,3695.9,3694.8,3.17269082]
[1760215369197,2.70577245,3695.9,3694.8,0.4662]
[1760215369397,20.3866052,3697.3,3694.9,2.70643319]
[1760215369598,20.3866052,3697.3,3696.3,2.70539007]
[1760215369803,2.70367241,3698.7,3696.3,3.1715489]
[1760215369804,2.70447234,3697.6,3696.3,3.1715489]
[1760215369998,20.3866052,3697.9,3696.3,3.1715489]
[1760215370226,20.3866052,3697.9,3696.3,0.4662]
[1760215370428,0.2257,3700.0,3696.3,0.4662]
[1760215370631,2.70379215,3698.6,3696.3,0.4662]
[1760215370794,2.70343336,3699.0,3696.4,0.02705334]
[1760215371001,2.70343336,3699.0,3696.2,0.1622]
[1760215371002,2.70365126,3698.8,3696.5,3.17146173]
[1760215371329,0.1344,3698.6,3698.0,0.1352]
[1760215371494,0.1344,3698.9,3698.3,0.1344]
[1760215372029,0.1344,3698.4,3697.8,0.1352]
[1760215372428,0.4541,3699.5,3697.8,0.1622431]
[1760215372615,0.4541,3699.5,3697.8,0.4662]
[1760215372816,2.70366174,3698.7,3697.8,0.4662]
[1760215373016,0.6336,3699.3,3696.3,1.92]
[1760215373222,2.70337497,3699.1,3698.0,2.70413756]
[1760215373395,2.7028488,3699.8,3698.1,0.66334091]
[1760215373396,2.70347398,3699.0,3698.1,0.66334091]
[1760215373617,0.6674,3700.0,3698.1,0.66334091]
[1760215373817,2.70314877,3699.4,3698.4,2.70380452]
[1760215374140,2.70302343,3699.6,3698.6,2.70371094]
[1760215374322,2.70299402,3699.7,3698.7,0.02703652]
[1760215374524,2.70292958,3699.7,3698.7,0.02703652]
[1760215374915,0.6336,3700.2,3698.7,0.02703652]
[1760215375124,2.70248358,3700.3,3698.8,2.70354219]
[1760215375125,2.70294563,3699.7,3698.8,2.70354219]
[1760215375443,0.6336,3699.9,3698.9,0.02703506]
[1760215375651,2.70299499,3699.6,3698.9,0.02703506]
[1760215375831,2.70293239,3699.7,3698.8,2.70357632]
[1760215376013,2.70239911,3700.5,3698.9,2.7035008]
[1760215376212,2.70233752,3700.5,3698.9,0.4658]
[1760215376444,3.14356181,3701.2,3698.9,0.4658]
[1760215376614,2.70299478,3699.7,3698.9,0.4658]
[1760215376816,2.70233752,3700.5,3698.9,0.4658]
[1760215377041,2.5536,3700.4,3698.9,0.4658]
[1760215377262,2.70319394,3699.4,3698.9,0.4658]
[1760215377447,0.4417,3700.7,3699.0,0.4658]
[1760215377617,2.70290982,3699.8,3699.0,0.4658]
[1760215378046,0.001,3699.3,3699.0,0.4658]
[1760215378341,0.001,3699.3,3698.7,2.70362309]
[1760215378342,0.001,3699.3,3698.5,2.70378288]
[1760215378534,0.001,3699.3,3698.7,2.70358676]
[1760215379151,0.001,3699.3,3698.6,3.16951966]
[1760215379719,0.001,3699.3,3698.6,0.4658]
[1760215379972,0.001,3699.3,3698.8,2.7035772]
[1760215380253,0.001,3699.3,3698.7,0.02703652]
[1760215380254,0.001,3699.3,3699.0,2.70343336]
[1760215380437,0.001,3699.3,3698.7,0.4658]
[1760215380438,0.001,3699.3,3699.1,0.0270336]
[1760215380753,0.001,3699.3,3699.2,2.73032006]
[1760215381145,0.001,3699.3,3699.2,3.16908719]
[1760215381660,0.001,3700.1,3700.0,5.2307857]
[1760215381826,2.7000756,3703.6,3700.1,5.25616379]
[1760215382026,0.4404,3703.5,3700.4,1.92]
[1760215382253,2.70118421,3702.1,3701.0,2.70190726]
[1760215382439,2.70118421,3702.1,3700.3,2.70242506]
[1760215382440,0.4404,3702.3,3700.2,2.91355484]
[1760215382643,0.4404,3702.3,3700.7,0.1344]
[1760215382644,2.70185037,3701.2,3700.7,0.1344]
[1760215382967,0.1344,3701.3,3700.7,0.1344]
[1760215383260,2.70211846,3700.8,3700.7,0.1344]
[1760215383564,2.70229294,3700.6,3700.5,0.1344]
[1760215383772,0.1344,3700.4,3699.8,0.6002]
[1760215384075,2.70220202,3700.7,3699.8,0.4658]
[1760215384273,2.70235433,3700.5,3700.2,0.1344]
[1760215384629,2.70219147,3700.7,3700.2,0.1344]
[1760215384938,0.4404,3702.2,3699.9,0.02702775]
[1760215385126,0.4404,3702.2,3700.3,0.4658]
[1760215385740,2.70193174,3701.1,3700.3,0.4658]
[1760215385927,0.4404,3702.2,3700.3,0.4658]
[1760215386150,0.4404,3702.2,3699.4,0.211]
[1760215386151,0.6336,3701.4,3699.8,0.4658]
[1760215386351,2.70240222,3700.5,3699.8,0.4658]
[1760215386551,2.70242382,3700.4,3699.8,0.4658]
[1760215386783,0.6336,3701.1,3699.8,0.4658]
[1760215386948,1.074,3701.0,3699.4,0.211]
[1760215387157,1.074,3701.0,3699.2,0.4658]
[1760215387158,0.6336,3700.7,3699.2,0.4658]
[1760215387370,0.6336,3700.7,3697.3,2.70462608]
[1760215387371,3.33593918,3700.5,3699.0,0.211]
[1760215387666,2.7023965,3700.5,3699.4,2.70307424]
[1760215387867,2.7023965,3700.5,3699.5,2.70303753]
[1760215388065,2.7023965,3700.5,3699.6,2.70297133]
[1760215388266,2.70235576,3700.5,3699.7,0.02702921]
[1760215388466,1.92,3701.7,3699.8,2.7028488]
[1760215388645,1.92,3701.7,3699.9,0.4658]
[1760215388848,0.6336,3701.5,3699.0,0.211]
[1760215389044,0.6336,3700.5,3697.2,0.02704749]
[1760215389291,0.6336,3700.5,3695.5,0.002]
[1760215389292,0.4404,3700.5,3698.5,0.211]
[1760215389454,0.6336,3700.2,3698.5,0.211]
[1760215389654,2.70333107,3699.2,3698.5,0.211]
[1760215390273,2.70306357,3699.6,3698.5,0.211]
[1760215390478,0.4404,3700.8,3699.3,2.70315624]
[1760215390707,2.5536,3700.5,3699.1,0.4658]
[1760215390861,1.92,3700.9,3699.1,0.4658]
[1760215390862,1.92,3701.2,3699.5,2.70300842]
[1760215391065,2.70254978,3700.3,3699.5,0.4658]
[1760215391261,1.3865346,3704.1,3699.7,2.70286378]
[1760215391449,1.3865346,3704.1,3699.0,1.92]
[1760215391450,0.665,3701.9,3699.8,0.49282848]
[1760215391649,0.01725829,3702.4,3700.3,2.70248177]
[1760215391852,2.70131546,3702.0,3700.4,0.4928241]
[1760215392062,2.70128058,3702.0,3701.1,2.70189775]
[1760215392313,2.70135481,3701.9,3701.1,3.16769775]
[1760215392548,1.92,3702.6,3700.5,0.4658]
[1760215392750,2.70216331,3700.8,3699.9,0.4658]
[1760215392955,2.70212069,3700.8,3699.9,0.4658]
[1760215393250,2.70204544,3700.9,3699.9,0.4658]
[1760215393452,2.70220082,3700.7,3699.9,0.4658]
[1760215393780,0.6336,3701.4,3700.0,0.02702702]
[1760215393954,0.6336,3701.2,3698.1,0.1705]
[1760215394284,2.70231085,3700.6,3699.3,0.4658]
[1760215394463,0.6336,3700.5,3699.3,0.4658]
[1760215394666,2.7029195,3699.8,3699.3,0.4658]
[1760215394856,0.6336,3700.4,3698.9,2.70348999]
[1760215395058,2.70292219,3699.7,3699.3,0.1344]
[1760215395288,0.4404,3699.7,3698.5,2.91478344]
[1760215395453,0.1344,3699.7,3699.0,0.1344]
[1760215395654,2.70248676,3700.3,3699.2,2.70322452]
[1760215395886,2.70248676,3700.3,3699.1,0.4658]
[1760215395887,3.33615661,3700.2,3700.1,0.002]
[1760215396602,3.77655661,3700.2,3700.1,0.002]
[1760215397014,5.69655661,3700.2,3700.1,0.002]
[1760215397400,5.71442807,3700.2,3700.1,0.002]
[1760215398216,3.33674104,3699.4,3699.3,0.002]
[1760215398714,3.77714104,3699.4,3699.3,0.002]
[1760215399772,3.33674104,3699.4,3699.3,0.002]
[1760215400823,2.70292266,3699.7,3699.3,0.002]
[1760215401113,2.70305918,3699.6,3699.3,0.002]
[1760215401709,2.70310328,3699.5,3699.3,0.002]
[1760215401875,3.33653953,3699.7,3699.3,0.002]
[1760215402203,2.70173983,3701.4,3699.3,0.002]
[1760215402204,0.4404,3701.1,3699.4,0.4658]
[1760215402409,2.70269217,3700.1,3699.4,0.4658]
[1760215402705,2.70269217,3700.1,3699.4,3.16891939]
[1760215402706,0.6336,3700.1,3699.4,3.16891939]
[1760215403005,2.7023527,3700.5,3699.7,2.70290108]
[1760215403209,2.3604,3701.1,3699.8,2.70280782]
[1760215403405,2.70232175,3700.6,3699.8,2.70280782]
[1760215403713,0.4393,3702.3,3699.9,0.46352775]
[1760215404002,0.001,3702.3,3700.5,2.70226473]
[1760215404211,0.001,3702.3,3699.9,0.4365]
[1760215404409,0.6675,3701.8,3700.0,2.7027027]
[1760215404707,0.6336,3700.8,3699.6,0.4365]
[1760215405212,2.7023304,3700.6,3699.7,2.70289816]
[1760215405515,2.70219151,3700.7,3699.9,2.70276136]
[1760215405726,2.70219151,3700.7,3699.6,3.13947837]
[1760215405727,2.70190018,3701.1,3700.0,3.13918695]
[1760215405888,0.001,3701.9,3700.1,0.46352629]
[1760215406086,2.70174005,3701.4,3700.5,2.70228071]
[1760215406290,2.70188075,3701.2,3700.2,2.70255661]
[1760215406494,0.6336,3701.4,3700.6,2.70225314]
[1760215406694,0.6674,3701.8,3699.5,0.4365]
[1760215406695,0.4591,3701.3,3699.5,0.4365]
[1760215407013,2.70220743,3700.7,3699.8,2.70278825]
[1760215407220,2.70220743,3700.7,3699.5,0.4365]
[1760215407221,0.6336,3701.2,3699.5,0.4365]
[1760215407380,0.6336,3701.0,3700.0,2.70264277]
[1760215407583,0.6336,3700.8,3700.0,2.70264277]
[1760215407892,2.70214693,3700.8,3700.0,2.70264277]
[1760215408277,0.1344,3700.6,3700.0,0.1344]
[1760215408475,0.1344,3701.0,3700.4,0.1344]
[1760215408727,0.1344,3701.0,3700.5,2.70228068]
[1760215408926,0.1344,3701.0,3700.6,0.4365]
[1760215409078,0.001,3701.9,3700.7,0.4365]
[1760215409275,0.001,3701.9,3701.0,2.70197243]
[1760215409487,0.001,3701.9,3701.7,2.70141654]
[1760215409687,0.001,3701.9,3701.8,2.70138851]
[1760215410209,0.001,3701.9,3701.8,3.13788851]
[1760215410578,0.001,3701.9,3701.8,3.16490239]
[1760215410782,0.001,3701.9,3701.8,3.13788851]
[1760215411211,0.001,3701.9,3701.4,2.70165754]
[1760215411413,0.001,3701.9,3701.8,3.13788851]
[1760215412220,0.001,3701.9,3701.8,0.4365]
[1760215412606,0.001,3701.9,3701.8,3.13788851]
[1760215413390,0.001,3701.9,3701.8,3.16490239]
[1760215413680,0.001,3701.9,3701.8,3.13788851]
[1760215414687,0.001,3701.9,3701.3,0.4365]
[1760215415019,0.001,3701.9,3701.7,0.4365]
[1760215415223,0.001,3702.3,3702.2,2.70109664]
[1760215415600,0.001,3702.3,3702.2,3.13759664]
[1760215417886,0.001,3702.3,3702.2,5.05759664]
[1760215419386,0.001,3702.3,3702.2,5.19199664]
[1760215420209,0.001,3702.3,3702.2,5.05759664]
[1760215420424,0.001,3702.3,3702.2,5.19199664]
[1760215420626,0.001,3702.3,3702.2,5.82559664]
[1760215421387,0.001,3702.3,3702.2,5.19199664]
[1760215429550,0.001,3702.3,3702.2,3.27199664]
[1760215430110,0.001,3702.3,3702.2,5.19199664]
[1760215430639,0.001,3702.3,3702.2,3.27199664]
[1760215433435,0.001,3702.3,3702.2,3.2990076]
[1760215434411,0.001,3702.3,3702.2,5.2190076]
[1760215434612,0.001,3702.7,3702.6,2.70080483]
[1760215434845,0.001,3703.1,3703.0,2.70051309]
[1760215435022,2.69878802,3705.4,3703.0,0.02700513]
[1760215435221,2.83333762,3705.2,3704.4,2.69942649]
[1760215435445,0.1344,3705.2,3704.5,0.1344]
[1760215435855,2.69935449,3704.6,3704.2,0.1344]
[1760215436010,0.1344,3704.8,3704.2,0.1344]
[1760215436225,0.1344,3704.2,3703.5,0.1344]
[1760215436620,0.1344,3704.2,3703.7,0.1344]
[1760215436621,2.69969879,3704.2,3703.7,0.1344]
[1760215436819,2.69992872,3703.9,3703.7,0.1344]
[1760215437069,2.69993453,3703.8,3703.5,0.1344]
[1760215437230,2.70008844,3703.6,3703.3,0.1344]
[1760215437434,2.6999298,3703.8,3703.3,0.1344]
[1760215437635,0.1344,3703.9,3703.3,0.1344]
[1760215438335,3.24437287,3706.8,3702.7,0.1592]
[1760215438336,2.69964015,3704.2,3703.4,3.17111837]
[1760215438566,2.69964015,3704.2,3703.7,0.1344]
[1760215439029,0.1344,3704.3,3703.8,0.4709]
[1760215439230,0.1344,3704.3,3703.9,0.4709]
[1760215439438,0.1344,3704.3,3703.7,0.1150365]
[1760215439766,2.69979178,3704.0,3703.7,0.1150365]
[1760215440056,2.69915847,3704.9,3703.8,0.4709]
[1760215440261,0.1344,3704.6,3703.9,0.1344]
[1760215440562,0.1344,3705.1,3704.4,0.1344]
[1760215440762,3.14929984,3705.9,3704.2,0.1344]
[1760215441060,0.6336,3704.9,3704.2,0.4709]
[1760215441260,0.6336,3704.9,3702.9,2.70051536]
[1760215441261,0.6336,3704.7,3701.9,2.70128127]
[1760215441463,0.4509,3704.9,3702.8,0.4709]
[1760215441662,2.69999504,3703.8,3702.9,2.70053176]
[1760215441841,2.70003307,3703.7,3703.0,2.70050856]
[1760215442037,0.6336,3704.3,3702.8,0.4709]
[1760215442465,2.7001346,3703.6,3702.8,3.1715518]
[1760215442666,0.6336,3704.3,3702.8,0.4709]
[1760215442871,0.6336,3704.3,3702.8,3.17154522]
[1760215443036,2.7001239,3703.6,3702.8,3.17154522]
[1760215443665,0.6336,3704.3,3702.7,0.1592]
[1760215443666,1.92,3704.2,3702.7,0.1592]
[1760215443970,2.70087261,3702.6,3701.9,0.1592]
[1760215444268,22.55259545,3703.7,3701.9,0.1592]
[1760215444269,0.6336,3702.7,3701.9,2.86050251]
[1760215444570,2.70102736,3702.3,3701.6,0.4729]
[1760215444756,2.70058602,3702.9,3701.6,0.002]
[1760215445065,2.70135942,3701.9,3701.6,0.002]
[1760215445362,0.6336,3701.7,3701.6,0.002]
[1760215445565,3.33506149,3701.7,3701.6,0.002]
[1760215446455,3.78316149,3701.7,3701.6,0.002]
[1760215446766,3.78316149,3701.7,3700.3,0.1152]
[1760215446767,0.6336,3701.6,3700.3,0.1152]
[1760215446970,1.7027367,3699.6,3698.9,1e-08]
[1760215447169,1.7027367,3699.6,3698.5,0.002]
[1760215447170,2.70372573,3698.6,3698.5,0.002]
[1760215447378,2.70372573,3698.6,3696.3,0.002]
[1760215447379,2.55360001,3698.5,3696.3,0.002]
[1760215447553,20.45229545,3697.7,3696.3,0.002]
[1760215447863,2.70476243,3697.2,3696.3,0.002]
[1760215448064,0.6336,3697.4,3696.3,0.002]
[1760215448250,20.45229545,3697.7,3696.3,0.002]
[1760215448454,2.70519473,3696.6,3696.3,0.002]
[1760215448660,0.6336,3697.3,3696.3,0.002]
[1760215448835,2.70491864,3697.0,3696.3,0.002]
[1760215449040,0.6336,3697.1,3696.3,0.002]
[1760215449244,2.70519311,3696.6,3696.3,0.002]
[1760215449471,2.70508232,3696.8,3696.3,0.002]
[1760215449677,2.70515734,3696.7,3696.3,0.002]
[1760215449974,2.70504315,3696.8,3696.3,0.002]
[1760215450130,0.6336,3697.2,3696.3,0.002]
[1760215450330,0.6336,3697.6,3696.3,0.002]
[1760215450547,2.70533492,3696.4,3696.3,0.002]
[1760215451034,0.6336,3697.2,3696.3,0.002]
[1760215451581,2.70504078,3696.9,3696.3,0.002]
[1760215451744,2.70505704,3696.8,3696.3,0.002]
[1760215451946,2.70497504,3696.9,3696.3,0.002]
[1760215452252,2.704398,3697.7,3696.3,0.002]
[1760215452253,0.6336,3697.7,3696.4,0.4709]
[1760215452488,2.70489365,3697.1,3696.4,0.49795334]
[1760215452659,2.70460892,3697.4,3696.4,0.49795334]
[1760215452857,2.70468896,3697.3,3696.4,3.17623104]
[1760215453090,0.83969725,3698.7,3696.3,0.002]
[1760215453091,2.70429976,3697.9,3696.8,2.70498768]
[1760215453295,2.70429976,3697.9,3696.6,2.70518855]
[1760215453296,2.70429976,3697.9,3696.9,3.17579784]
[1760215453594,2.70357953,3698.8,3697.1,2.70475074]
[1760215453768,0.4509,3698.9,3697.2,2.73177976]
[1760215453769,2.70404919,3698.2,3697.2,2.73177976]
[1760215454292,2.70413355,3698.1,3697.2,2.73177976]
[1760215454453,2.70467128,3697.4,3695.9,0.002]
[1760215454653,2.70481792,3697.2,3696.3,0.4729]
[1760215454903,2.70431067,3697.8,3696.3,0.4729]
[1760215455192,3.33819219,3697.5,3696.3,0.4729]
[1760215455399,2.70533492,3696.4,3696.3,0.002]
[1760215457488,0.4509,3697.1,3695.4,0.4709]
[1760215457489,2.70564917,3696.0,3695.4,0.4269]
[1760215457696,2.70556115,3696.1,3695.4,0.4269]
[1760215458001,2.70549413,3696.2,3695.4,3.13296534]
[1760215458206,0.6336,3696.8,3695.4,0.4269]
[1760215458502,0.6336,3696.8,3694.0,0.1428]
[1760215458503,0.6336,3696.4,3694.0,0.1428]
[1760215458671,0.6336,3696.4,3694.0,2.84984748]
[1760215458875,2.70606679,3695.5,3694.5,2.70666208]
[1760215459101,2.70608162,3695.4,3694.0,0.1428]
[1760215459403,2.70608162,3695.4,3694.5,2.70669908]
[1760215459705,0.6336,3697.1,3695.2,2.70617637]
[1760215459906,0.6336,3696.9,3695.0,0.4277]
[1760215460074,0.6336,3696.6,3695.0,0.4277]
[1760215460277,0.6336,3697.3,3695.1,2.73334956]
[1760215460485,2.70527487,3696.5,3695.7,2.70581465]
[1760215460781,2.70441129,3697.7,3695.2,0.4277]
[1760215460782,0.6336,3696.8,3695.2,0.4277]
[1760215460988,2.70547627,3696.3,3695.2,0.4277]
[1760215461208,0.1352,3696.4,3695.8,0.1352]
[1760215461496,2.70325,3699.3,3695.3,0.4277]
[1760215461701,2.70517469,3696.7,3695.3,0.4277]
[1760215461876,2.70423754,3697.9,3695.3,0.4277]
[1760215461877,0.4509,3697.7,3696.2,2.7054212]
[1760215462066,0.4509,3697.7,3696.0,2.70561816]
[1760215462265,0.4509,3697.7,3695.9,0.4277]
[1760215462478,2.70496024,3697.0,3696.1,2.70553831]
[1760215462771,2.70496024,3697.0,3696.2,2.70546415]
[1760215463468,2.5536,3697.6,3696.1,0.1421]
[1760215463673,2.70532202,3696.5,3695.5,3.13367833]
[1760215463886,2.70532202,3696.5,3695.7,2.70578418]
[1760215464082,2.70518925,3696.6,3695.8,2.70576426]
[1760215464602,2.70528314,3696.5,3695.7,2.70583137]
[1760215465100,2.70512712,3696.7,3695.9,2.70568309]
[1760215465297,2.5536,3697.6,3696.0,0.4277]
[1760215465466,2.5536,3697.6,3696.1,2.8476545]
[1760215465663,0.4619,3697.9,3696.2,0.4277]
[1760215465868,0.001,3698.0,3696.3,2.70540811]
[1760215466100,0.001,3698.0,3697.6,2.70439184]
[1760215466400,0.001,3698.0,3696.4,1.92]
[1760215466581,0.001,3698.0,3697.3,2.7046181]
[1760215466787,0.001,3698.0,3697.5,2.70453008]
[1760215466982,0.001,3698.0,3697.6,2.73149148]
[1760215467304,0.001,3698.0,3697.8,2.70425621]
[1760215467515,0.001,3698.0,3697.9,2.73127991]
[1760215468313,0.001,3698.0,3697.8,2.70428618]
[1760215468516,0.001,3698.0,3697.7,0.4277]
[1760215468717,0.001,3698.0,3697.9,2.70423754]
[1760215469086,0.001,3698.0,3695.2,2.70620454]
[1760215469283,0.6336,3697.8,3695.6,0.4277]
[1760215469524,2.705326,3696.5,3695.7,2.70583307]
[1760215469817,2.70546861,3696.3,3695.4,2.70599768]
[1760215470208,2.70552249,3696.2,3695.4,2.70599768]
[1760215470405,2.70496902,3696.9,3695.5,2.70598987]
[1760215470406,2.70542473,3696.3,3695.5,2.70598987]
[1760215470587,2.70549449,3696.2,3695.5,2.70598987]
[1760215470906,2.70549449,3696.2,3695.4,2.70605071]
[1760215471308,2.70549449,3696.2,3695.9,0.1352]
[1760215471495,2.70511835,3696.7,3695.9,0.1352]
[1760215471686,2.70532027,3696.5,3694.8,0.4277]
[1760215471888,0.6336,3697.0,3695.3,2.70610875]
[1760215472112,2.70540906,3696.3,3695.4,2.706067]
[1760215472709,2.70540906,3696.3,3695.5,2.70597774]
[1760215472913,3.33849586,3697.0,3695.5,2.70597774]
[1760215472914,2.70435861,3697.8,3695.6,0.4547592]
[1760215473188,0.4619,3697.9,3695.6,0.4547592]
[1760215473389,17.63247953,3698.4,3695.6,0.4277]
[1760215473637,2.70446372,3697.6,3695.9,2.70570091]
[1760215473791,18.09437953,3698.4,3696.1,1.92]
[1760215474131,2.70454503,3697.5,3696.6,2.70511836]
[1760215474293,18.09437953,3698.4,3696.6,0.4277]
[1760215474492,2.70451844,3697.6,3696.8,2.70497997]
[1760215474732,0.4619,3697.8,3696.1,2.0621]
[1760215474935,2.7049411,3697.0,3696.1,2.84758376]
[1760215475156,2.70521929,3696.6,3695.5,3.13368668]
[1760215475358,2.70541888,3696.3,3695.6,1.92]
[1760215475670,0.4619,3696.9,3695.5,0.4277]
[1760215475963,2.70538899,3696.4,3695.6,2.70591847]
[1760215476126,1.0955,3697.4,3695.5,3.13362922]
[1760215476316,2.70518454,3696.7,3695.8,2.70576423]
[1760215476516,2.70521707,3696.6,3695.8,2.70576423]
[1760215476716,2.70534888,3696.4,3695.6,2.70585089]
[1760215477021,2.70534888,3696.4,3695.7,2.7058416]
[1760215477220,2.70503832,3696.9,3695.8,0.02705774]
[1760215477417,2.7052635,3696.5,3695.6,2.70592055]
[1760215477657,0.6336,3697.2,3695.5,0.4277]
[1760215477958,2.70539823,3696.4,3695.6,2.70591297]
[1760215478261,2.70547482,3696.3,3695.5,0.4277]
[1760215478558,2.70547482,3696.3,3695.4,2.70600307]
[1760215478760,2.70547482,3696.3,3695.5,2.70599216]
[1760215479461,20.55055882,3696.7,3695.0,0.4297]
[1760215479754,2.70553787,3696.2,3695.3,2.70607169]
[1760215479916,0.6336,3696.6,3695.4,2.70602402]
[1760215480119,0.6336,3696.6,3695.5,0.02705993]
[1760215480316,0.6336,3696.6,3695.5,2.73303678]
[1760215480518,2.70548883,3696.2,3695.4,2.70604774]
[1760215480744,2.70552626,3696.2,3695.4,2.70605167]
[1760215481170,0.6336,3696.6,3695.0,0.4297]
[1760215481324,2.70526627,3696.5,3695.7,2.70582326]
[1760215481525,0.1352,3696.3,3695.7,2.84102326]
[1760215481927,2.8406176,3696.3,3695.7,0.1352]
[1760215482133,0.1352,3696.3,3695.7,0.1352]
[1760215482332,0.4629,3698.0,3696.2,0.1421]
[1760215482547,2.70518211,3696.7,3696.2,0.1352]
[1760215482733,0.1352,3697.1,3696.2,0.1352]
[1760215482928,0.1352,3697.1,3696.3,0.1352]
[1760215483125,0.6336,3696.8,3695.0,0.4297]
[1760215483371,2.84054549,3696.4,3695.7,0.1352]
[1760215483658,2.70567722,3696.0,3695.7,0.1352]
[1760215483863,0.1352,3696.1,3695.0,0.4297]
[1760215484171,0.1352,3696.1,3695.5,0.1352]
[1760215484357,2.7051723,3696.7,3695.2,2.70621346]
[1760215484529,2.70540295,3696.4,3695.5,2.70592835]
[1760215484723,0.6336,3697.1,3695.0,0.002]
[1760215484724,0.6336,3696.5,3695.0,0.002]
[1760215484957,20.55055882,3696.6,3695.6,2.70586083]
[1760215485164,2.70549298,3696.2,3695.5,2.70599127]
[1760215485464,2.70542206,3696.3,3695.6,2.70591903]
[1760215485767,2.70548676,3696.2,3695.5,2.70598409]
[1760215486065,20.55055882,3696.6,3695.1,0.4277]
[1760215486365,20.55055882,3697.4,3696.5,0.1421]
[1760215486545,2.70497208,3696.9,3695.6,3.13361368]
[1760215486724,0.6336,3697.2,3695.6,0.4277]
[1760215487055,2.70540402,3696.4,3695.7,0.02705847]
[1760215487368,2.70526526,3696.5,3695.7,2.70579402]
[1760215487567,2.70534496,3696.4,3695.6,2.70591242]
[1760215487732,2.70534496,3696.4,3695.7,0.02705847]
[1760215487931,2.70518855,3696.6,3695.5,2.70596929]
[1760215488155,2.70535127,3696.4,3695.6,2.7058662]
[1760215488462,2.70510468,3696.8,3696.0,2.70557451]
[1760215489174,0.4363,3697.3,3695.7,0.4277]
[1760215489330,2.70480698,3697.2,3696.1,2.84760035]
[1760215489675,2.70480698,3697.2,3695.2,0.4277]
[1760215489676,0.6336,3697.2,3695.2,0.4277]
[1760215489966,2.7051313,3696.7,3695.9,2.70564019]
[1760215490463,20.55055882,3697.4,3696.0,0.4277]
[1760215490669,2.70491108,3697.0,3696.2,2.70541003]
[1760215490959,2.7049379,3697.0,3696.2,2.70546426]
[1760215491267,2.70498716,3696.9,3696.1,2.84763845]
[1760215491665,20.55055882,3697.4,3696.4,2.70527667]
[1760215491874,20.55055882,3697.4,3696.3,2.70539733]
[1760215492068,20.55155882,3698.0,3696.1,0.1421]
[1760215492239,20.55155882,3698.0,3696.4,0.4277]
[1760215492434,2.70437586,3697.8,3696.9,2.70489812]
[1760215492639,2.70439742,3697.7,3696.8,0.4277]
[1760215492858,2.70454942,3697.5,3696.4,0.4277]
[1760215493035,0.001,3698.0,3697.0,2.70488655]
[1760215493234,0.001,3698.0,3697.1,0.69818865]
[1760215493458,0.001,3698.0,3697.4,2.7045601]
[1760215493737,0.001,3698.0,3697.4,2.70454434]
[1760215493932,0.001,3698.0,3697.1,0.4277]
[1760215494165,0.001,3698.0,3697.3,0.4277]
[1760215494344,0.001,3698.0,3697.9,0.1352]
[1760215494745,2.70423754,3697.9,3697.1,2.70481439]
[1760215495066,0.4674,3698.5,3697.1,2.70481439]
[1760215495067,0.001,3698.8,3698.1,2.70404616]
[1760215495244,0.2221,3700.8,3698.7,2.0608]
[1760215495445,0.2221,3700.8,3699.0,2.70341393]
[1760215495653,2.70265169,3700.1,3699.3,2.70318362]
[1760215495840,2.70228441,3700.6,3699.3,0.4247]
[1760215496036,0.4674,3700.9,3699.4,2.70313612]
[1760215496376,2.70218871,3700.8,3699.3,0.4247]
[1760215496575,2.701498,3701.7,3698.7,0.1408]